lending/lending_fUSD_20240411
["ID","MTS","AMOUNT","RATE_DAILY","PERIOD"]
[322192605,1712869841203,-3471.41144835,0.00025053,2]
[322192606,1712869841212,-200.0,0.00025161,2]
[322192607,1712869841221,-2080.12763989,0.00025185,2]
[322192608,1712869841230,-175.53,0.00025187,2]
[322192609,1712869841240,-305.50474343,0.00025194,2]
[322192610,1712869841249,-150.0,0.000253,2]
[322192611,1712869841258,-154.06513536,0.00025338,2]
[322192612,1712869841268,-1464.86,0.00025416,2]
[322192613,1712869841277,-2305.46968417,0.00025665,2]
[322192614,1712869841286,-518.0,0.00025718,2]
[322192615,1712869841295,-700.0,0.00025752,2]
[322192616,1712869841304,-1800.0,0.00025752,2]
[322192617,1712869841314,-500.0,0.00025752,2]
[322192618,1712869841323,-500.0,0.00025752,2]
[322192619,1712869841332,-500.0,0.00025752,2]
[322192620,1712869841342,-331.380326,0.00025753,2]
[322192621,1712869841351,-150.0,0.000258,2]
[322192622,1712869841363,-3471.41144835,0.00025883,2]
[322192623,1712869841372,-305.50474343,0.0002591,2]
[322192624,1712869841382,-165.20597766,0.00025943,2]
[322192625,1712869841391,-210.59409303,0.00025943,11]
[322192626,1712869841400,-175.53,0.00025968,2]
[322192627,1712869841410,-154.06513536,0.00025972,2]
[322192628,1712869841419,-275757.91253332,0.00026,2]
[322192629,1712869841428,-2080.12763989,0.00026043,3]
[322192630,1712869841439,-700.0,0.000263,2]
[322192631,1712869841448,-1800.0,0.000263,2]
[322192632,1712869841458,-150.0,0.000263,2]
[322192633,1712869841467,-331.380326,0.00026575,2]
[322192634,1712869841476,-154.06513536,0.00026607,2]
[322192635,1712869841485,-2305.46968417,0.00026618,3]
[322192636,1712869841495,-305.50474343,0.00026626,2]
[322192637,1712869841505,-3471.41144835,0.00026714,2]
[322192638,1712869841515,-175.53,0.00026748,2]
[322192639,1712869841525,-150.0,0.000268,2]
[322192640,1712869841535,-1800.0,0.00026848,2]
[322192641,1712869841544,-700.0,0.00026848,2]
[322192642,1712869841553,-500.0,0.00026848,2]
[322192643,1712869841563,-500.0,0.00026848,2]
[322192644,1712869841572,-599.28776286,0.00026848,2]
[322192645,1712869841582,-1074.75721278,0.00026884,2]
[322192646,1712869841591,-2080.12763989,0.000269,3]
[322192647,1712869841600,-10957.47991719,0.00027,2]
[322192648,1712869841610,-268554.50851535,0.00027,2]
[322192649,1712869841619,-175.42339407,0.00027,2]
[322192650,1712869841629,-890.18,0.0002708,2]
[322192651,1712869841638,-100000.0,0.00027095,2]
[322192652,1712869841647,-245000.0,0.00027095,2]
[322192653,1712869841656,-2974.3697,0.00027095,2]
[322192654,1712869841666,-1000.0,0.00027095,2]
[322192655,1712869841675,-11020.59,0.00027123,2]
[322192656,1712869841685,-615.0,0.000272,2]
[322192657,1712869841695,-154.06513536,0.00027241,2]
[322192658,1712869841704,-1000.0,0.00027297,2]
[322192659,1712869841714,-150.0,0.000273,2]
[322192660,1712869841723,-305.50474343,0.00027342,2]
[322192661,1712869841733,-1312.19495,0.0002739,2]
[322192662,1712869841742,-500.0,0.00027397,2]
[322192663,1712869841751,-500.0,0.00027397,2]
[322192664,1712869841761,-500.0,0.00027397,2]
[322192665,1712869841770,-500.0,0.00027397,2]
[322192666,1712869841779,-500.0,0.00027397,2]
[322192667,1712869841788,-586.58864606,0.00027397,2]
[322192668,1712869841797,-500.0,0.00027397,2]
[322192669,1712869841807,-500.0,0.00027397,2]
[322192670,1712869841816,-500.0,0.00027397,2]
[322192671,1712869841828,-500.0,0.00027397,2]
[322192672,1712869841838,-500.0,0.00027397,2]
[322192673,1712869841848,-500.0,0.00027397,2]
[322192674,1712869841860,-500.0,0.00027397,2]
[322192675,1712869841870,-538.52045806,0.00027397,2]
[322192676,1712869841882,-500.0,0.00027397,2]
[322192677,1712869841892,-500.0,0.00027397,2]
[322192678,1712869841903,-500.0,0.00027397,2]
[322192679,1712869841913,-445.25748969,0.00027397,2]
[322192680,1712869841924,-500.0,0.00027397,2]
[322192681,1712869841935,-500.0,0.00027397,2]
[322192682,1712869841945,-534.94577928,0.00027397,2]
[322192683,1712869841956,-507.89,0.00027397,2]
[322192684,1712869841966,-500.0,0.00027397,2]
[322192685,1712869841979,-500.0,0.00027397,2]
[322192686,1712869841988,-537.78198253,0.00027397,2]
[322192687,1712869841999,-500.0,0.00027397,2]
[322192688,1712869842008,-507.3472958,0.00027397,2]
[322192689,1712869842021,-500.0,0.00027397,2]
[322192690,1712869842033,-590.86,0.00027397,2]
[322192691,1712869842044,-500.0,0.00027397,2]
[322192692,1712869842053,-500.0,0.00027397,2]
[322192693,1712869842064,-500.0,0.00027397,2]
[322192694,1712869842074,-500.0,0.00027397,2]
[322192695,1712869842086,-500.0,0.00027397,2]
[322192696,1712869842096,-500.0,0.00027397,2]
[322192697,1712869842106,-500.0,0.00027397,2]
[322192698,1712869842117,-500.0,0.00027397,2]
[322192699,1712869842127,-234.48662456,0.00027397,2]
[322192700,1712869842138,-500.0,0.00027397,2]
[322192701,1712869842151,-351.41853625,0.00027397,2]
[322192702,1712869842163,-500.0,0.00027397,2]
[322192703,1712869842174,-500.0,0.00027397,2]
[322192704,1712869842183,-500.0,0.00027397,2]
[322192705,1712869842196,-805.44,0.00027397,2]
[322192706,1712869842207,-508.43944857,0.00027397,2]
[322192707,1712869842217,-500.0,0.00027397,2]
[322192708,1712869842228,-507.18425562,0.00027397,2]
[322192709,1712869842238,-342.91548874,0.00027397,2]
[322192710,1712869842248,-500.0,0.00027397,2]
[322192711,1712869842258,-500.0,0.00027397,2]
[322192712,1712869842268,-500.0,0.00027397,2]
[322192713,1712869842277,-500.0,0.00027397,2]
[322192714,1712869842286,-500.0,0.00027397,2]
[322192715,1712869842296,-205.85034716,0.00027397,2]
[322192716,1712869842306,-500.0,0.00027397,2]
[322192717,1712869842315,-500.0,0.00027397,2]
[322192718,1712869842326,-500.0,0.00027397,2]
[322192719,1712869842336,-629.54,0.00027397,2]
[322192720,1712869842347,-500.0,0.00027397,2]
[322192721,1712869842357,-500.0,0.00027397,2]
[322192722,1712869842368,-500.0,0.00027397,2]
[322192723,1712869842377,-500.0,0.00027397,2]
[322192724,1712869842388,-500.0,0.00027397,2]
[322192725,1712869842397,-501.65533072,0.00027397,2]
[322192726,1712869842407,-500.0,0.00027397,2]
[322192727,1712869842416,-500.0,0.00027397,2]
[322192728,1712869842425,-500.0,0.00027397,2]
[322192729,1712869842435,-500.0,0.00027397,2]
[322192730,1712869842444,-500.0,0.00027397,2]
[322192731,1712869842455,-500.0,0.00027397,2]
[322192732,1712869842465,-500.0,0.00027397,2]
[322192733,1712869842474,-500.0,0.00027397,2]
[322192734,1712869842483,-500.0,0.00027397,2]
[322192735,1712869842493,-500.0,0.00027397,2]
[322192736,1712869842503,-500.0,0.00027397,2]
[322192737,1712869842512,-500.0,0.00027397,2]
[322192738,1712869842522,-500.0,0.00027397,2]
[322192739,1712869842531,-500.0,0.00027397,2]
[322192740,1712869842542,-523.31024304,0.00027397,2]
[322192741,1712869842553,-500.0,0.00027397,2]
[322192742,1712869842562,-500.0,0.00027397,2]
[322192743,1712869842573,-500.0,0.00027397,2]
[322192744,1712869842583,-500.0,0.00027397,2]
[322192745,1712869842593,-500.0,0.00027397,2]
[322192746,1712869842604,-500.0,0.00027397,2]
[322192747,1712869842613,-765.12,0.00027397,2]
[322192748,1712869842623,-500.0,0.00027397,2]
[322192749,1712869842632,-500.0,0.00027397,2]
[322192750,1712869842641,-500.0,0.00027397,2]
[322192751,1712869842650,-500.0,0.00027397,2]
[322192752,1712869842659,-500.0,0.00027397,2]
[322192753,1712869842669,-500.0,0.00027397,2]
[322192754,1712869842677,-500.0,0.00027397,2]
[322192755,1712869842686,-500.0,0.00027397,2]
[322192756,1712869842695,-500.0,0.00027397,2]
[322192757,1712869842704,-500.0,0.00027397,2]
[322192758,1712869842713,-673.55,0.00027397,2]
[322192759,1712869842722,-500.0,0.00027397,2]
[322192760,1712869842730,-500.0,0.00027397,2]
[322192761,1712869842739,-500.0,0.00027397,2]
[322192762,1712869842748,-500.0,0.00027397,2]
[322192763,1712869842757,-500.0,0.00027397,2]
[322192764,1712869842767,-500.0,0.00027397,2]
[322192765,1712869842776,-500.0,0.00027397,2]
[322192766,1712869842785,-500.0,0.00027397,2]
[322192767,1712869842794,-241.9607385,0.00027397,2]
[322192768,1712869842804,-500.0,0.00027397,2]
[322192769,1712869842813,-509.29711326,0.00027397,2]
[322192770,1712869842824,-500.0,0.00027397,2]
[322192771,1712869842834,-500.0,0.00027397,2]
[322192772,1712869842843,-500.0,0.00027397,2]
[322192773,1712869842852,-500.0,0.00027397,2]
[322192774,1712869842862,-500.0,0.00027397,2]
[322192775,1712869842871,-500.0,0.00027397,2]
[322192777,1712869842882,-500.0,0.00027397,2]
[322192779,1712869842891,-500.0,0.00027397,2]
[322192781,1712869842902,-511.69416299,0.00027397,2]
[322192783,1712869842910,-517.51391627,0.00027397,2]
[322192784,1712869842919,-1055.22,0.00027397,2]
[322192785,1712869842929,-500.0,0.00027397,2]
[322192786,1712869842939,-838.26,0.00027397,2]
[322192787,1712869842948,-513.12,0.00027397,2]
[322192788,1712869842957,-158.40536406,0.00027397,2]
[322192789,1712869842966,-500.0,0.00027397,2]
[322192790,1712869842976,-500.0,0.00027397,2]
[322192791,1712869842985,-561.16,0.00027397,2]
[322192792,1712869842996,-500.0,0.00027397,2]
[322192793,1712869843006,-500.0,0.00027397,2]
[322192794,1712869843015,-503.30447002,0.00027397,2]
[322192795,1712869843027,-500.0,0.00027397,2]
[322192796,1712869843036,-500.0,0.00027397,2]
[322192797,1712869843046,-520.88,0.00027397,2]
[322192798,1712869843058,-500.0,0.00027397,2]
[322192799,1712869843067,-500.0,0.00027397,2]
[322192800,1712869843079,-500.0,0.00027397,2]
[322192801,1712869843087,-507.60945149,0.00027397,2]
[322192802,1712869843096,-155.33339114,0.00027397,2]
[322192803,1712869843105,-535.69488025,0.00027397,2]
[322192804,1712869843115,-500.0,0.00027397,2]
[322192805,1712869843124,-500.0,0.00027397,2]
[322192806,1712869843133,-500.0,0.00027397,2]
[322192807,1712869843142,-500.0,0.00027397,2]
[322192808,1712869843151,-500.0,0.00027397,2]
[322192809,1712869843160,-500.0,0.00027397,2]
[322192810,1712869843169,-500.0,0.00027397,2]
[322192811,1712869843179,-500.0,0.00027397,2]
[322192812,1712869843188,-532.8,0.00027397,2]
[322192813,1712869843198,-500.0,0.00027397,2]
[322192814,1712869843207,-521.06229654,0.00027397,2]
[322192815,1712869843217,-500.0,0.00027397,2]
[322192816,1712869843226,-500.0,0.00027397,2]
[322192817,1712869843236,-500.0,0.00027397,2]
[322192818,1712869843247,-717.66,0.00027397,2]
[322192819,1712869843256,-500.0,0.00027397,2]
[322192820,1712869843266,-500.0,0.00027397,2]
[322192821,1712869843276,-500.0,0.00027397,2]
[322192822,1712869843286,-500.0,0.00027397,2]
[322192823,1712869843297,-500.0,0.00027397,2]
[322192824,1712869843306,-500.0,0.00027397,2]
[322192825,1712869843316,-500.0,0.00027397,2]
[322192826,1712869843329,-500.0,0.00027397,2]
[322192827,1712869843338,-500.0,0.00027397,2]
[322192828,1712869843351,-500.0,0.00027397,2]
[322192829,1712869843360,-500.0,0.00027397,2]
[322192830,1712869843369,-507.26437668,0.00027397,2]
[322192831,1712869843379,-956.54,0.00027397,2]
[322192832,1712869843390,-500.0,0.00027397,2]
[322192833,1712869843400,-502.38395553,0.00027397,2]
[322192834,1712869843410,-500.0,0.00027397,2]
[322192835,1712869843419,-502.47487918,0.00027397,2]
[322192836,1712869843428,-500.0,0.00027397,2]
[322192837,1712869843440,-500.0,0.00027397,2]
[322192838,1712869843450,-500.0,0.00027397,2]
[322192839,1712869843460,-500.0,0.00027397,2]
[322192840,1712869843470,-500.0,0.00027397,2]
[322192841,1712869843479,-500.0,0.00027397,2]
[322192842,1712869843488,-527.16,0.00027397,2]
[322192843,1712869843498,-500.0,0.00027397,2]
[322192844,1712869843507,-560.31630542,0.00027397,2]
[322192845,1712869843516,-500.0,0.00027397,2]
[322192846,1712869843525,-501.55610615,0.00027397,2]
[322192847,1712869843534,-500.0,0.00027397,2]
[322192848,1712869843543,-500.0,0.00027397,2]
[322192849,1712869843552,-500.0,0.00027397,2]
[322192850,1712869843561,-500.0,0.00027397,2]
[322192851,1712869843571,-500.0,0.00027397,2]
[322192852,1712869843580,-500.0,0.00027397,2]
[322192853,1712869843589,-500.0,0.00027397,2]
[322192855,1712869843598,-500.0,0.00027397,2]
[322192856,1712869843607,-500.0,0.00027397,2]
[322192858,1712869843616,-500.0,0.00027397,2]
[322192860,1712869843625,-500.0,0.00027397,2]
[322192861,1712869843634,-500.0,0.00027397,2]
[322192862,1712869843643,-500.0,0.00027397,2]
[322192863,1712869843651,-500.0,0.00027397,2]
[322192864,1712869843661,-500.0,0.00027397,2]
[322192865,1712869843670,-583.53,0.00027397,2]
[322192866,1712869843680,-437.88505559,0.00027397,2]
[322192867,1712869843690,-500.0,0.00027397,2]
[322192868,1712869843699,-500.0,0.00027397,2]
[322192869,1712869843709,-500.0,0.00027397,2]
[322192870,1712869843718,-500.0,0.00027397,2]
[322192871,1712869843727,-500.0,0.00027397,2]
[322192872,1712869843736,-500.0,0.00027397,2]
[322192873,1712869843745,-500.0,0.00027397,2]
[322192874,1712869843754,-500.0,0.00027397,2]
[322192875,1712869843763,-500.0,0.00027397,2]
[322192876,1712869843772,-500.0,0.00027397,2]
[322192877,1712869843781,-500.0,0.00027397,2]
[322192878,1712869843791,-500.0,0.00027397,2]
[322192879,1712869843800,-500.0,0.00027397,2]
[322192880,1712869843809,-500.0,0.00027397,2]
[322192881,1712869843818,-505.12540249,0.00027397,2]
[322192882,1712869843828,-794.27,0.00027397,2]
[322192883,1712869843837,-500.0,0.00027397,2]
[322192884,1712869843846,-500.0,0.00027397,2]
[322192885,1712869843855,-775.81,0.00027397,2]
[322192886,1712869843864,-500.0,0.00027397,2]
[322192887,1712869843873,-500.0,0.00027397,2]
[322192888,1712869843882,-500.0,0.00027397,2]
[322192889,1712869843891,-500.0,0.00027397,2]
[322192890,1712869843900,-500.0,0.00027397,2]
[322192891,1712869843909,-500.0,0.00027397,2]
[322192892,1712869843918,-500.0,0.00027397,2]
[322192893,1712869843927,-500.0,0.00027397,2]
[322192894,1712869843936,-1268.53,0.00027397,2]
[322192895,1712869843945,-500.0,0.00027397,2]
[322192896,1712869843954,-579.81,0.00027397,2]
[322192897,1712869843963,-683.65,0.00027397,2]
[322192898,1712869843972,-500.0,0.00027397,2]
[322192899,1712869843982,-500.0,0.00027397,2]
[322192900,1712869843991,-500.0,0.00027397,2]
[322192901,1712869844000,-500.0,0.00027397,2]
[322192902,1712869844009,-500.0,0.00027397,2]
[322192903,1712869844018,-1283.53,0.00027397,2]
[322192904,1712869844027,-500.0,0.00027397,2]
[322192905,1712869844037,-500.0,0.00027397,2]
[322192906,1712869844259,-500.0,0.00027397,2]
[322192907,1712869844270,-500.0,0.00027397,2]
[322192908,1712869844282,-1242.22,0.00027397,2]
[322192909,1712869844292,-500.0,0.00027397,2]
[322192910,1712869844303,-500.0,0.00027397,2]
[322192911,1712869844312,-500.0,0.00027397,2]
[322192912,1712869844322,-610.16,0.00027397,2]
[322192913,1712869844334,-500.0,0.00027397,2]
[322192914,1712869844347,-686.6,0.00027397,2]
[322192915,1712869844357,-500.0,0.00027397,2]
[322192916,1712869844371,-508.32390545,0.00027397,2]
[322192917,1712869844381,-964.51,0.00027397,2]
[322192918,1712869844391,-552.23,0.00027397,2]
[322192919,1712869844400,-500.0,0.00027397,2]
[322192920,1712869844409,-500.0,0.00027397,2]
[322192921,1712869844418,-500.0,0.00027397,2]
[322192922,1712869844428,-500.0,0.00027397,2]
[322192923,1712869844438,-500.0,0.00027397,2]
[322192924,1712869844447,-993.58,0.00027397,2]
[322192925,1712869844457,-500.0,0.00027397,2]
[322192926,1712869844466,-500.0,0.00027397,2]
[322192927,1712869844475,-675.23,0.00027397,2]
[322192928,1712869844485,-500.0,0.00027397,2]
[322192929,1712869844495,-500.0,0.00027397,2]
[322192930,1712869844505,-500.0,0.00027397,2]
[322192931,1712869844515,-500.0,0.00027397,2]
[322192932,1712869844526,-1308.49,0.00027397,2]
[322192933,1712869844535,-500.0,0.00027397,2]
[322192934,1712869844544,-257.86549205,0.00027397,2]
[322192935,1712869844554,-1721.91,0.00027397,2]
[322192936,1712869844563,-464.25824974,0.00027397,2]
[322192937,1712869844573,-564.56,0.00027397,2]
[322192938,1712869844583,-703.03,0.00027397,2]
[322192939,1712869844592,-560.79,0.00027397,2]
[322192940,1712869844601,-500.0,0.00027397,2]
[322192941,1712869844610,-561.9,0.00027397,2]
[322192942,1712869844619,-500.0,0.00027397,2]
[322192943,1712869844628,-1067.51,0.00027397,2]
[322192944,1712869844638,-525.13004729,0.00027397,2]
[322192945,1712869844647,-598.24,0.00027397,2]
[322192946,1712869844656,-500.0,0.00027397,2]
[322192947,1712869844666,-500.0,0.00027397,2]
[322192948,1712869844675,-500.0,0.00027397,2]
[322192949,1712869844685,-500.0,0.00027397,2]
[322192950,1712869844694,-500.0,0.00027397,2]
[322192951,1712869844704,-691.29,0.00027397,2]
[322192952,1712869844714,-500.0,0.00027397,2]
[322192953,1712869844724,-500.0,0.00027397,2]
[322192954,1712869844734,-500.0,0.00027397,2]
[322192955,1712869844744,-500.0,0.00027397,2]
[322192956,1712869844753,-500.0,0.00027397,2]
[322192957,1712869844764,-704.14,0.00027397,2]
[322192958,1712869844773,-500.0,0.00027397,2]
[322192959,1712869844783,-645.96,0.00027397,2]
[322192960,1712869844794,-1172.44,0.00027397,2]
[322192961,1712869844805,-500.0,0.00027397,2]
[322192962,1712869844817,-500.0,0.00027397,2]
[322192963,1712869844827,-500.0,0.00027397,2]
[322192964,1712869844837,-500.0,0.00027397,2]
[322192965,1712869844846,-500.0,0.00027397,2]
[322192966,1712869844855,-500.0,0.00027397,2]
[322192967,1712869844865,-500.0,0.00027397,2]
[322192968,1712869844874,-500.0,0.00027397,2]
[322192969,1712869844883,-1403.78,0.00027397,2]
[322192970,1712869844893,-500.0,0.00027397,2]
[322192971,1712869844902,-820.3,0.00027397,2]
[322192972,1712869844911,-500.0,0.00027397,2]
[322192973,1712869844920,-500.0,0.00027397,2]
[322192974,1712869844929,-500.0,0.00027397,2]
[322192975,1712869844939,-500.0,0.00027397,2]
[322192976,1712869844948,-500.0,0.00027397,2]
[322192977,1712869844957,-500.0,0.00027397,2]
[322192978,1712869844967,-500.0,0.00027397,2]
[322192979,1712869844976,-500.0,0.00027397,2]
[322192980,1712869844985,-500.0,0.00027397,2]
[322192981,1712869844994,-500.0,0.00027397,2]
[322192982,1712869845003,-500.0,0.00027397,2]
[322192983,1712869845013,-500.0,0.00027397,2]
[322192984,1712869845024,-500.0,0.00027397,2]
[322192985,1712869845034,-500.0,0.00027397,2]
[322192986,1712869845043,-500.0,0.00027397,2]
[322192987,1712869845052,-500.0,0.00027397,2]
[322192988,1712869845060,-1352.31,0.00027397,2]
[322192989,1712869845070,-500.0,0.00027397,2]
[322192990,1712869845079,-500.0,0.00027397,2]
[322192991,1712869845087,-868.58,0.00027397,2]
[322192992,1712869845096,-500.0,0.00027397,2]
[322192993,1712869845106,-500.0,0.00027397,2]
[322192994,1712869845115,-500.0,0.00027397,2]
[322192995,1712869845124,-500.0,0.00027397,2]
[322192996,1712869845133,-500.0,0.00027397,2]
[322192997,1712869845143,-1263.1,0.00027397,2]
[322192998,1712869845152,-496.74435236,0.00027397,2]
[322192999,1712869845161,-500.0,0.00027397,2]
[322193000,1712869845172,-811.44,0.00027397,2]
[322193001,1712869845181,-1192.54,0.00027397,2]
[322193002,1712869845190,-507.95009627,0.00027397,2]
[322193003,1712869845199,-500.0,0.00027397,2]
[322193004,1712869845209,-500.0,0.00027397,2]
[322193005,1712869845218,-500.0,0.00027397,2]
[322193006,1712869845227,-500.0,0.00027397,2]
[322193007,1712869845237,-500.0,0.00027397,2]
[322193008,1712869845247,-500.0,0.00027397,2]
[322193009,1712869845257,-500.0,0.00027397,2]
[322193010,1712869845266,-1391.45,0.00027397,2]
[322193011,1712869845276,-676.3,0.00027397,2]
[322193012,1712869845286,-609.69,0.00027397,2]
[322193013,1712869845296,-500.0,0.00027397,2]
[322193014,1712869845305,-500.0,0.00027397,2]
[322193015,1712869845316,-540.39,0.00027397,2]
[322193016,1712869845326,-1771.03,0.00027397,2]
[322193017,1712869845336,-500.0,0.00027397,2]
[322193018,1712869845351,-500.0,0.00027397,2]
[322193019,1712869845361,-541.31,0.00027397,2]
[322193020,1712869845370,-500.0,0.00027397,2]
[322193021,1712869845380,-1468.06,0.00027397,2]
[322193022,1712869845390,-500.0,0.00027397,2]
[322193023,1712869845401,-500.0,0.00027397,2]
[322193024,1712869845411,-862.27,0.00027397,2]
[322193025,1712869845421,-500.0,0.00027397,2]
[322193026,1712869845432,-500.0,0.00027397,2]
[322193027,1712869845444,-1183.63,0.00027397,2]
[322193028,1712869845453,-500.0,0.00027397,2]
[322193029,1712869845463,-500.0,0.00027397,2]
[322193030,1712869845475,-500.0,0.00027397,2]
[322193031,1712869845485,-500.0,0.00027397,2]
[322193032,1712869845495,-500.0,0.00027397,2]
[322193033,1712869845505,-500.0,0.00027397,2]
[322193034,1712869845516,-500.0,0.00027397,2]
[322193035,1712869845525,-500.0,0.00027397,2]
[322193036,1712869845536,-500.0,0.00027397,2]
[322193037,1712869845546,-500.0,0.00027397,2]
[322193038,1712869845558,-839.54,0.00027397,2]
[322193039,1712869845567,-500.0,0.00027397,2]
[322193040,1712869845579,-500.0,0.00027397,2]
[322193041,1712869845588,-500.0,0.00027397,2]
[322193042,1712869845600,-1787.12,0.00027397,2]
[322193043,1712869845609,-500.0,0.00027397,2]
[322193044,1712869845619,-500.0,0.00027397,2]
[322193045,1712869845629,-500.0,0.00027397,2]
[322193046,1712869845639,-500.0,0.00027397,2]
[322193047,1712869845649,-533.41475925,0.00027397,2]
[322193048,1712869845659,-500.0,0.00027397,2]
[322193049,1712869845669,-500.0,0.00027397,2]
[322193050,1712869845679,-192.16185736,0.00027397,2]
[322193051,1712869845689,-1253.73,0.00027397,2]
[322193052,1712869845699,-224.69848539,0.00027397,2]
[322193053,1712869845710,-500.0,0.00027397,2]
[322193054,1712869845720,-735.73,0.00027397,2]
[322193055,1712869845730,-500.0,0.00027397,2]
[322193056,1712869845741,-500.0,0.00027397,2]
[322193057,1712869845752,-1318.44,0.00027397,2]
[322193058,1712869845761,-500.0,0.00027397,2]
[322193059,1712869845772,-500.0,0.00027397,2]
[322193060,1712869845783,-500.0,0.00027397,2]
[322193061,1712869845792,-500.0,0.00027397,2]
[322193062,1712869845803,-500.0,0.00027397,2]
[322193063,1712869845813,-500.0,0.00027397,2]
[322193064,1712869845823,-500.0,0.00027397,2]
[322193066,1712869845832,-500.0,0.00027397,2]
[322193068,1712869845841,-500.0,0.00027397,2]
[322193070,1712869845850,-500.0,0.00027397,2]
[322193072,1712869845860,-1495.11,0.00027397,2]
[322193074,1712869845869,-700.59,0.00027397,2]
[322193076,1712869845878,-500.0,0.00027397,2]
[322193077,1712869845889,-500.0,0.00027397,2]
[322193078,1712869845899,-500.0,0.00027397,2]
[322193079,1712869845910,-758.95,0.00027397,2]
[322193080,1712869845919,-521.21,0.00027397,2]
[322193081,1712869845930,-500.0,0.00027397,2]
[322193082,1712869845942,-1654.67,0.00027397,2]
[322193083,1712869845952,-500.0,0.00027397,2]
[322193084,1712869845963,-500.0,0.00027397,2]
[322193085,1712869845973,-500.0,0.00027397,2]
[322193086,1712869845984,-500.0,0.00027397,2]
[322193087,1712869845995,-500.0,0.00027397,2]
[322193088,1712869846004,-638.47,0.00027397,2]
[322193089,1712869846014,-500.0,0.00027397,2]
[322193090,1712869846025,-1164.2,0.00027397,2]
[322193091,1712869846034,-500.0,0.00027397,2]
[322193092,1712869846044,-500.0,0.00027397,2]
[322193094,1712869846053,-500.0,0.00027397,2]
[322193096,1712869846061,-949.05,0.00027397,2]
[322193097,1712869846071,-500.0,0.00027397,2]
[322193098,1712869846080,-500.0,0.00027397,2]
[322193099,1712869846090,-500.0,0.00027397,2]
[322193101,1712869846099,-500.0,0.00027397,2]
[322193102,1712869846108,-500.0,0.00027397,2]
[322193104,1712869846118,-500.0,0.00027397,2]
[322193106,1712869846127,-500.0,0.00027397,2]
[322193108,1712869846137,-500.0,0.00027397,2]
[322193109,1712869846147,-500.0,0.00027397,2]
[322193110,1712869846157,-500.0,0.00027397,2]
[322193111,1712869846166,-599.20107632,0.00027397,2]
[322193112,1712869846177,-500.0,0.00027397,2]
[322193113,1712869846186,-500.0,0.00027397,2]
[322193114,1712869846195,-500.0,0.00027397,2]
[322193115,1712869846204,-777.64,0.00027397,2]
[322193116,1712869846213,-500.0,0.00027397,2]
[322193117,1712869846223,-1096.04,0.00027397,2]
[322193118,1712869846232,-646.84,0.00027397,2]
[322193119,1712869846241,-500.0,0.00027397,2]
[322193120,1712869846250,-500.0,0.00027397,2]
[322193121,1712869846259,-500.0,0.00027397,2]
[322193122,1712869846268,-683.7,0.00027397,2]
[322193123,1712869846277,-958.72,0.00027397,2]